fUSD/lending_fUSD_20251113
["ID","MTS","AMOUNT","RATE_DAILY","PERIOD"]
[393875873,1763061033274,-500.0,0.0001702,2]
[393875874,1763061033286,-500.0,0.0001702,2]
[393875875,1763061033295,-500.0,0.0001702,2]
[393875876,1763061033305,-500.0,0.0001702,2]
[393875877,1763061033314,-500.0,0.0001702,2]
[393875878,1763061033323,-500.0,0.0001702,2]
[393875879,1763061033332,-500.0,0.0001702,2]
[393875880,1763061033341,-500.0,0.0001702,2]
[393875881,1763061033351,-500.0,0.0001702,2]
[393875882,1763061033360,-500.0,0.0001702,2]
[393875883,1763061033369,-500.0,0.0001702,2]
[393875884,1763061033380,-500.0,0.0001702,2]
[393875885,1763061033389,-500.0,0.0001702,2]
[393875886,1763061033399,-500.0,0.0001702,2]
[393875887,1763061033548,-500.0,0.0001702,2]
[393875888,1763061033559,-500.0,0.0001702,2]
[393875889,1763061033568,-500.0,0.0001702,2]
[393875890,1763061033577,-500.0,0.0001702,2]
[393875891,1763061033586,-500.0,0.0001702,2]
[393875892,1763061033595,-500.0,0.0001702,2]
[393875893,1763061033605,-500.0,0.0001702,2]
[393875894,1763061033614,-500.0,0.0001702,2]
[393875895,1763061033624,-500.0,0.0001702,2]
[393875896,1763061033632,-288.3246715,0.0001702,2]
[393875897,1763061033641,-500.0,0.0001702,2]
[393875898,1763061033651,-500.0,0.0001702,2]
[393875899,1763061033659,-500.0,0.0001702,2]
[393875900,1763061033668,-500.0,0.0001702,2]
[393875901,1763061033678,-500.0,0.0001702,2]
[393875902,1763061033687,-500.0,0.0001702,2]
[393875903,1763061033696,-500.0,0.0001702,2]
[393875904,1763061033706,-500.0,0.0001702,2]
[393875905,1763061033715,-500.0,0.0001702,2]
[393875906,1763061033724,-500.0,0.0001702,2]
[393875907,1763061033733,-500.0,0.0001702,2]
[393875908,1763061033743,-500.0,0.0001702,2]
[393875909,1763061033752,-500.0,0.0001702,2]
[393875910,1763061033761,-500.0,0.0001702,2]
[393875911,1763061033770,-500.0,0.0001702,2]
[393875912,1763061033780,-500.0,0.0001702,2]
[393875913,1763061033790,-500.0,0.0001702,2]
[393875914,1763061033799,-500.0,0.0001702,2]
[393875915,1763061033808,-500.0,0.0001702,2]
[393875916,1763061033817,-478.83246715,0.0001702,2]
[393875917,1763061033827,-500.0,0.0001702,2]
[393875918,1763061033836,-500.0,0.0001702,2]
[393875919,1763061033846,-500.0,0.0001702,2]
[393875920,1763061033855,-500.0,0.0001702,2]
[393875921,1763061033864,-500.0,0.0001702,2]
[393875922,1763061033873,-500.0,0.0001702,2]
[393875923,1763061033882,-500.0,0.0001702,2]
[393875924,1763061033892,-500.0,0.0001702,2]
[393875925,1763061033901,-500.0,0.0001702,2]
[393875926,1763061033910,-500.0,0.0001702,2]
[393875927,1763061033919,-500.0,0.0001702,2]
[393875928,1763061033928,-500.0,0.0001702,2]
[393875929,1763061033937,-500.0,0.0001702,2]
[393875930,1763061033946,-500.0,0.0001702,2]
[393875931,1763061033956,-500.0,0.0001702,2]
[393875932,1763061033965,-500.0,0.0001702,2]
[393875933,1763061033974,-500.0,0.0001702,2]
[393875934,1763061033983,-350.0,0.0001702,2]
[393875935,1763061033992,-318.92665692,0.0001702,2]
[393875936,1763061034001,-500.0,0.0001702,2]
[393875937,1763061034010,-500.0,0.0001702,2]
[393875938,1763061034019,-318.92665692,0.0001702,2]
[393875939,1763061034028,-500.0,0.0001702,2]
[393875940,1763061034038,-318.92665692,0.0001702,2]
[393875941,1763061034047,-500.0,0.0001702,2]
[393875942,1763061034056,-318.92665692,0.0001702,2]
[393875943,1763061034066,-500.0,0.0001702,2]
[393875944,1763061034075,-318.92665692,0.0001702,2]
[393875945,1763061034083,-500.0,0.0001702,2]
[393875946,1763061034093,-318.92665692,0.0001702,2]
[393875947,1763061034104,-500.0,0.0001702,2]
[393875948,1763061034113,-500.0,0.0001702,2]
[393875949,1763061034122,-500.0,0.0001702,2]
[393875950,1763061034133,-500.0,0.0001702,2]
[393875951,1763061034142,-327.95776406,0.0001702,2]
[393875952,1763061034152,-500.0,0.0001702,2]
[393875953,1763061034161,-500.0,0.0001702,2]
[393875954,1763061034170,-500.0,0.0001702,2]
[393875955,1763061034180,-500.0,0.0001702,2]
[393875956,1763061034191,-327.95776406,0.0001702,2]
[393875957,1763061034201,-646.65493446,0.0001702,2]
[393875958,1763061034211,-646.65493446,0.0001702,2]
[393875959,1763061034220,-646.65493446,0.0001702,2]
[393875960,1763061034229,-646.65493446,0.0001702,2]
[393875961,1763061034239,-41631.04824505,0.00017021,2]
[393875962,1763061034251,-51272.98914106,0.00017021,2]
[393875963,1763061034262,-16091.29487136,0.00017021,2]
[393875964,1763061034273,-6961.3218186,0.00017021,2]
[393875971,1763061038286,-304043.34592393,0.00017021,2]
[393875972,1763061038298,-1000.0,0.0001704,2]
[393875973,1763061038308,-166.66,0.00017044,2]
[393875974,1763061038317,-3394.54496349,0.00017047,2]
[393875975,1763061038327,-5129.69743553,0.00017047,2]
[393875976,1763061038337,-500.0,0.00017073,2]
[393875977,1763061038347,-500.0,0.00017073,2]
[393875978,1763061038357,-501.54339398,0.00017073,2]
[393875979,1763061038500,-500.0,0.00017073,2]
[393875981,1763061038511,-416.42343256,0.00017073,2]
[393875982,1763061038522,-500.0,0.00017073,2]
[393875983,1763061038533,-320.7332621,0.00017073,2]
[393875984,1763061038550,-500.0,0.00017073,2]
[393875985,1763061038562,-324.04214263,0.00017073,2]
[393875986,1763061038576,-507.32409942,0.00017073,2]
[393875987,1763061038594,-164.70747778,0.00017073,2]
[393875988,1763061038606,-500.0,0.00017073,2]
[393875990,1763061038618,-500.0,0.00017073,2]
[393875991,1763061038631,-152.06591262,0.00017073,2]
[393875993,1763061038643,-500.0,0.00017073,2]
[393875995,1763061038653,-500.0,0.00017073,2]
[393875997,1763061038663,-500.0,0.00017081,2]
[393875999,1763061038673,-250.0,0.00017081,2]
[393876001,1763061038683,-500.0,0.00017119,2]
[393876003,1763061038695,-500.0,0.00017119,2]
[393876005,1763061038705,-500.0,0.00017119,2]
[393876007,1763061038716,-500.0,0.00017119,2]
[393876010,1763061038726,-500.0,0.00017119,2]
[393876012,1763061038737,-500.0,0.00017119,2]
[393876014,1763061038747,-500.0,0.00017119,2]
[393876016,1763061038756,-567.08701969,0.00017119,2]
[393876018,1763061038766,-500.0,0.00017119,2]
[393876020,1763061038776,-299.38127558,0.0001712,2]
[393876022,1763061038786,-500.0,0.0001712,2]
[393876023,1763061038804,-500.0,0.0001712,2]
[393876025,1763061038814,-500.0,0.0001712,2]
[393876028,1763061038824,-199.50038999,0.0001712,2]
[393876030,1763061038835,-500.0,0.0001712,2]
[393876032,1763061038845,-403.40670543,0.0001712,2]
[393876034,1763061038854,-60375.2182679,0.00017121,2]
[393876036,1763061038865,-3394.54496349,0.00017153,2]
[393876037,1763061038875,-5129.69743553,0.00017153,2]
[393876039,1763061038884,-500.0,0.00017173,2]
[393876041,1763061038895,-151.0,0.00017259,2]
[393876044,1763061038906,-151.0,0.00017259,2]
[393876045,1763061038916,-3394.54496349,0.0001726,2]
[393876048,1763061038927,-151.0,0.0001726,2]
[393876049,1763061038936,-151.0,0.00017261,2]
[393876051,1763061038945,-587.88,0.00017285,2]
[393876053,1763061038955,-2000.0,0.000173,2]
[393876056,1763061038966,-200.0,0.000173,6]
[393876058,1763061038976,-3394.54496349,0.00017367,2]
[393876059,1763061038986,-500.0,0.000174,6]
[393876060,1763061038995,-150.0,0.00017455,2]
[393876061,1763061039005,-800.0,0.000175,6]
[393876062,1763061039019,-500.0,0.00017534,2]
[393876063,1763061039028,-587.88,0.00017559,2]
[393876064,1763061039040,-1100.0,0.000176,6]
[393876065,1763061039052,-166.66,0.00017606,2]
[393876066,1763061039062,-169.35146718,0.00017621,2]
[393876067,1763061039071,-1000.0,0.00017621,2]
[393876068,1763061039081,-500.0,0.00017621,2]
[393876069,1763061039091,-500.0,0.00017621,2]
[393876070,1763061039100,-500.0,0.00017621,2]
[393876072,1763061039110,-500.0,0.00017621,2]
[393876074,1763061039119,-533.40147207,0.00017621,2]
[393876076,1763061039128,-500.0,0.00017621,2]
[393876078,1763061039138,-1000.0,0.00017621,2]
[393876080,1763061039146,-1400.0,0.000177,6]
[393876082,1763061039155,-200.0,0.000178,6]
[393876084,1763061039165,-552.17437,0.0001782,2]
[393876086,1763061039174,-552.17438,0.0001782,2]
[393876088,1763061039184,-552.17437,0.0001782,2]
[393876090,1763061039193,-552.17437,0.0001782,2]
[393876092,1763061039202,-552.17438,0.0001782,2]
[393876094,1763061039212,-587.88,0.00017833,2]
[393876096,1763061039221,-1000.0,0.00017899,2]
[393876098,1763061039231,-1386.02065968,0.000179,2]
[393876099,1763061039240,-169.2044629,0.000179,2]
[393876101,1763061039249,-286.79113025,0.000179,2]
[393876103,1763061039259,-1213.0076068,0.000179,2]
[393876105,1763061039268,-200.0,0.000179,6]
[393876106,1763061039278,-268.07427404,0.000179,3]
[393876107,1763061039287,-165.20004784,0.000179,2]
[393876108,1763061039301,-1734.43426632,0.000179,2]
[393876109,1763061039311,-433.38109738,0.000179,2]
[393876110,1763061039322,-515.12719469,0.00017973,2]
[393876111,1763061039331,-501.60703041,0.00017973,2]
[393876112,1763061039341,-518.01248713,0.00017973,2]
[393876113,1763061039352,-331.20277471,0.00017973,2]
[393876114,1763061039361,-509.66911117,0.00017998,2]
[393876115,1763061039371,-443.73507614,0.00017998,2]
[393876116,1763061039381,-500.0,0.00017998,2]
[393876117,1763061039391,-500.0,0.00017998,2]
[393876118,1763061039400,-500.0,0.00017998,2]
[393876119,1763061039410,-500.0,0.00017998,2]
[393876120,1763061039419,-440.69894426,0.00017998,2]
[393876121,1763061039429,-500.0,0.00017998,2]
[393876122,1763061039438,-561.46292857,0.00017998,2]
[393876123,1763061039448,-222398.777186,0.00017999,2]
[393876124,1763061039457,-1864.52677068,0.00017999,5]
[393876125,1763061039467,-300.0,0.00017999,2]
[393876126,1763061039476,-151.0,0.00017999,2]
[393876127,1763061039489,-1157.9880101,0.00017999,5]
[393876128,1763061039499,-1157.98801011,0.00017999,5]
[393876129,1763061039508,-300.0,0.00017999,2]
[393876130,1763061039518,-153.933941,0.00017999,2]
[393876131,1763061039527,-620.5,0.00017999,2]
[393876132,1763061039538,-500.0,0.00017999,2]
[393876133,1763061039550,-500.0,0.00017999,2]
[393876134,1763061039560,-500.0,0.00017999,2]
[393876135,1763061039570,-500.0,0.00017999,2]
[393876136,1763061039579,-500.0,0.00017999,2]
[393876137,1763061039588,-243.36,0.00017999,2]
[393876138,1763061039597,-332.10480629,0.00017999,2]
[393876139,1763061039607,-500.0,0.00017999,2]
[393876140,1763061039616,-500.0,0.00017999,2]
[393876141,1763061039626,-500.0,0.00017999,2]
[393876142,1763061039635,-500.0,0.00017999,2]
[393876143,1763061039644,-500.0,0.00017999,2]
[393876144,1763061039654,-500.0,0.00017999,2]
[393876145,1763061039664,-500.0,0.00017999,2]
[393876146,1763061039674,-500.0,0.00017999,2]
[393876147,1763061039683,-353.7585125,0.00017999,2]
[393876148,1763061039693,-500.0,0.00017999,2]
[393876149,1763061039702,-500.0,0.00017999,2]
[393876150,1763061039711,-500.0,0.00017999,2]
[393876151,1763061039721,-300.0,0.00017999,2]
[393876152,1763061039731,-300.0,0.00017999,2]
[393876153,1763061039740,-552.17437,0.00017999,2]
[393876154,1763061039749,-151.0,0.00017999,2]
[393876155,1763061039758,-158.509599,0.00017999,2]
[393876156,1763061039767,-300.0,0.00017999,2]
[393876157,1763061039777,-353.126475,0.00017999,2]
[393876158,1763061039787,-353.126475,0.00017999,2]
[393876159,1763061039798,-353.126475,0.00017999,2]
[393876160,1763061039808,-353.126475,0.00017999,2]
[393876161,1763061039818,-1901251.58600591,0.00018,2]
[393876162,1763061039832,-1494.05246063,0.00018,2]
[393876163,1763061040359,-152.42967896,0.000179,2]
[393876164,1763061040483,-1763.17473554,0.00018,2]
[393876165,1763061040503,-382.94917308,0.00018,2]
[393876166,1763061040515,-4663.45325746,0.00018,2]
[393876167,1763061040525,-4455.0869924,0.00018,2]
[393876168,1763061040576,-1602.05045001,0.00018,2]
[393876169,1763061040632,-286.42212938,0.00018,2]
[393876210,1763061043553,-3201.28000002,0.0001726,2]
[393876211,1763061043565,-1928.41743551,0.0001726,2]
[393876212,1763061043575,-3394.54496349,0.00017473,2]
[393876213,1763061043585,-4516.98850101,0.00018,2]
[393876214,1763061043597,-1483.45419461,0.00018,2]
[393876215,1763061043684,-1568.96532772,0.00018,2]
[393876216,1763061043695,-22403.43088889,0.00018,2]
[393876385,1763061067203,1475.76760094,0.0001692,2]
[393876386,1763061067229,10000.01,0.0001692,2]
[393876387,1763061067256,10000.01,0.0001692,2]
[393876388,1763061067281,10000.01,0.0001692,2]
[393876389,1763061067306,10000.01,0.0001692,2]
[393876390,1763061067337,10000.01,0.0001692,2]
[393876391,1763061067363,10000.01,0.0001692,2]
[393876392,1763061067389,10000.01,0.0001692,2]
[393876393,1763061067415,10000.01,0.0001692,2]
[393876394,1763061067439,10000.01,0.0001692,2]
[393876395,1763061068859,-300.03562773,0.0001692,2]
[393876396,1763061070950,-348.07437606,0.0001692,2]
[393876397,1763061073553,-364.03808069,0.0001692,2]
[393876398,1763061077361,-176.23168238,0.0001692,2]
[393876399,1763061081124,-1061.95192596,0.0001692,2]
[393876400,1763061081228,-10000.01,0.0001692,2]
[393876401,1763061081355,-10000.01,0.0001692,2]
[393876402,1763061081478,-10000.01,0.0001692,2]
[393876403,1763061081634,-10000.01,0.0001692,2]
[393876404,1763061082003,-10000.01,0.0001692,2]
[393876405,1763061082135,-10000.01,0.0001692,2]
[393876407,1763061083243,-500.0,0.0001692,2]
[393876408,1763061083895,-10000.01,0.0001692,2]
[393876409,1763061084020,-10000.01,0.0001692,2]
[393876410,1763061084207,-10000.01,0.0001692,2]
[393876411,1763061084341,-10000.01,0.0001692,2]
[393876412,1763061084950,-288.54292081,0.0001692,2]
[393876413,1763061087167,-10000.01,0.0001692,2]
[393876414,1763061087415,-10000.01,0.0001692,2]
[393876415,1763061087537,-10000.01,0.0001692,2]
[393876416,1763061087701,-10000.01,0.0001692,2]
[393876417,1763061087841,-10000.01,0.0001692,2]
[393876418,1763061087954,-10000.01,0.0001692,2]
[393876419,1763061088795,-254.19922662,0.0001692,2]
[393876420,1763061090216,-182.94134438,0.0001692,2]
[393876421,1763061090266,-10000.01,0.0001692,2]
[393876422,1763061090375,-10000.01,0.0001692,2]
[393876423,1763061090853,-10000.01,0.0001692,2]
[393876424,1763061091842,-245.80077338,0.0001692,2]
[393876425,1763061093899,-153.75869393,0.0001692,2]
[393876426,1763061095390,-201.53004459,0.0001692,2]
[393876427,1763061096584,-10000.01,0.0001692,2]
[393876428,1763061096744,-10000.01,0.0001692,2]
[393876429,1763061096866,-10000.01,0.0001692,2]
[393876430,1763061096983,-10000.01,0.0001692,2]
[393876431,1763061097093,-10000.01,0.0001692,2]
[393876432,1763061097298,-10000.01,0.0001692,2]
[393876433,1763061097443,-10000.01,0.0001692,2]
[393876434,1763061099826,-10000.01,0.0001692,2]
[393876435,1763061100015,-10000.01,0.0001692,2]
[393876436,1763061100204,-10000.01,0.0001692,2]
[393876437,1763061100451,-205.30907325,0.0001692,2]
[393876438,1763061101899,-189.90286759,0.0001692,2]
[393876440,1763061105030,-500.0,0.0001692,2]
[393876441,1763061106343,-10000.01,0.0001692,2]
[393876442,1763061107068,-10000.01,0.0001692,2]
[393876443,1763061107092,-10000.01,0.0001692,2]
[393876444,1763061107121,-3551.50576169,0.0001692,2]
[393876445,1763061107130,-1000.0,0.00016921,2]
[393876446,1763061117582,6083.055,0.00016921,2]
[393876448,1763061132917,3700.7080994,0.00016989,2]
[393876452,1763061213511,216.2469006,0.00016921,2]
[393876453,1763061213536,5813.7221994,0.00016921,2]
[393876454,1763061240445,4186.2878006,0.0001692,2]
[393876455,1763061240471,10000.01,0.0001692,2]
[393876456,1763061240496,10000.01,0.0001692,2]
[393876457,1763061240520,10000.01,0.0001692,2]
[393876458,1763061240547,10000.01,0.0001692,2]
[393876459,1763061240571,10000.01,0.0001692,2]
[393876460,1763061240596,10000.01,0.0001692,2]
[393876461,1763061240620,10000.01,0.0001692,2]
[393876462,1763061240645,10000.01,0.0001692,2]
[393876463,1763061240671,10000.01,0.0001692,2]
[393876464,1763061241699,-231.10645961,0.0001692,2]
[393876465,1763061244944,-189.91482283,0.0001692,2]
[393876466,1763061247217,-500.0,0.0001692,2]
[393876467,1763061249449,-10000.01,0.0001692,2]
[393876468,1763061249569,-10000.01,0.0001692,2]
[393876469,1763061249699,-10000.01,0.0001692,2]
[393876470,1763061249818,-10000.01,0.0001692,2]
[393876471,1763061249944,-10000.01,0.0001692,2]
[393876472,1763061250074,-10000.01,0.0001692,2]
[393876473,1763061250206,-10000.01,0.0001692,2]
[393876474,1763061250314,-500.0,0.0001692,2]
[393876475,1763061251802,-262.22712963,0.0001692,2]
[393876476,1763061252299,-10000.01,0.0001692,2]
[393876477,1763061252375,-10000.01,0.0001692,2]
[393876478,1763061253862,-381.1595594,0.0001692,2]
[393876479,1763061255608,-10000.01,0.0001692,2]
[393876480,1763061256169,-165.06162252,0.0001692,2]
[393876481,1763061257841,-180.14438837,0.0001692,2]
[393876482,1763061259838,-10000.01,0.0001692,2]
[393876483,1763061260012,-10000.01,0.0001692,2]
[393876484,1763061260144,-10000.01,0.0001692,2]
[393876485,1763061260266,-10000.01,0.0001692,2]
[393876486,1763061260423,-10000.01,0.0001692,2]
[393876487,1763061260544,-10000.01,0.0001692,2]
[393876488,1763061260775,-10000.01,0.0001692,2]
[393876489,1763061260891,-10000.01,0.0001692,2]
[393876490,1763061261046,-10000.01,0.0001692,2]
[393876491,1763061263011,-303.70127456,0.0001692,2]
[393876492,1763061264314,-192.67157439,0.0001692,2]
[393876494,1763061266543,-310.08517717,0.0001692,2]
[393876495,1763061268316,-393.95915316,0.0001692,2]
[393876496,1763061271150,-392.27553776,0.0001692,2]
[393876497,1763061273195,-290.86009396,0.0001692,2]
[393876498,1763061277077,-500.0,0.0001692,2]
[393876499,1763061278646,-169.7367218,0.0001692,2]
[393876500,1763061280127,-168.96345768,0.0001692,2]
[393876501,1763061281654,-10000.01,0.0001692,2]
[393876502,1763061281776,-207.69021522,0.0001692,2]
[393876503,1763061281860,-10000.01,0.0001692,2]
[393876504,1763061281976,-10000.01,0.0001692,2]
[393876505,1763061282084,-10000.01,0.0001692,2]
[393876506,1763061282196,-10000.01,0.0001692,2]
[393876507,1763061282304,-10000.01,0.0001692,2]
[393876508,1763061282438,-10000.01,0.0001692,2]
[393876509,1763061282581,-10000.01,0.0001692,2]
[393876510,1763061282720,-10000.01,0.0001692,2]
[393876511,1763061282884,-10000.01,0.0001692,2]
[393876512,1763061286196,-500.0,0.0001692,2]
[393876513,1763061288552,-158.72648078,0.0001692,2]
[393876514,1763061290916,-284.02738841,0.0001692,2]
[393876515,1763061293158,-158.75011163,0.0001692,2]
[393876516,1763061296551,-165.11005202,0.0001692,2]
[393876517,1763061299371,-10000.01,0.0001692,2]
[393876518,1763061299504,-10000.01,0.0001692,2]
[393876519,1763061299650,-792.8690215,0.0001692,2]
[393876520,1763061299671,-8414.271957,0.0001692,2]
[393876521,1763061299950,-159.46214866,0.00016921,2]
[393876522,1763061301202,300.0,0.00016919,2]
[393876523,1763061301586,1200.0,0.00016919,2]
[393876524,1763061302458,-291.83508745,0.00016921,2]
[393876525,1763061306161,-157.81361727,0.00016921,2]
[393876526,1763061308169,8500.01,7.945e-05,2]
[393876527,1763061308191,559.469363,7.945e-05,2]
[393876528,1763061309046,-267.8318977,0.00016921,2]
[393876529,1763061310980,-123.05724892,0.00016921,2]
[393876530,1763061311002,-27.94275108,0.00016921,2]
[393876531,1763061312606,-280.0613693,0.00016921,2]
[393876532,1763061316642,-595.66072848,0.00016921,2]
[393876533,1763061318201,-149.35535114,0.00016921,2]
[393876534,1763061318223,-52.40572064,0.00016921,2]
[393876535,1763061320282,-230.59473671,0.00016921,2]
[393876536,1763061323346,-279.38181508,0.00016921,2]
[393876537,1763061326536,-181.06273026,0.00016921,2]
[393876538,1763061329280,-249.13965689,0.00016921,2]
[393876539,1763061331904,-177.03985575,0.00016921,2]
[393876540,1763061333730,-160.90067003,0.00016921,2]
[393876541,1763061335225,-337.33241199,0.00016921,2]
[393876542,1763061340269,-307.10309559,0.00016921,2]
[393876543,1763061343193,-213.13897211,0.00016921,2]
[393876544,1763061346430,-302.5159006,0.00016921,2]
[393876545,1763061367785,7787.01942,7.945e-05,2]
[393876546,1763061376405,500.0,0.00016919,2]
[393876547,1763061377760,500.0,0.0001692,2]
[393876548,1763061427704,300.76025162,0.00040867,30]
[393876549,1763061438843,500.0,0.00040867,30]
[393876550,1763061441398,653.521217,0.00016919,2]
[393876551,1763061441420,1002.34277604,0.00016919,2]
[393876552,1763061452256,150.0,0.00030137,120]
[393876553,1763061464650,159.46214866,0.00016919,2]
[393876554,1763061466507,500.0,0.00016919,2]
[393876555,1763061485211,500.0,0.00016919,2]
[393876557,1763061563311,7838.2050753,0.0001692,2]
[393876558,1763061563335,10000.01,0.0001692,2]
[393876559,1763061563360,3742.1837512,0.0001692,2]
[393876560,1763061574991,500.0,0.00016919,2]
[393876561,1763061582471,-9.38443435,0.00016921,2]
[393876562,1763061607192,9981.2411313,0.00016885,2]
[393876563,1763061607216,3297.0303717,0.00016885,2]
[393876564,1763061671411,319.56686651,0.00016919,2]
[393876567,1763061729735,500.0,0.00016919,2]
[393876570,1763061773409,200.0,0.0001678,2]
[393876580,1763061914515,149308.19203644,0.00040867,30]
[393876581,1763061927759,556803.61812046,0.00040867,30]
[393876590,1763061952372,637.74,0.00016774,2]
[393876591,1763061956483,150.0,0.000162,2]
[393876592,1763061956599,150.0,0.00016364,2]
[393876593,1763061956666,150.0,0.00016527,2]
[393876594,1763061956760,150.0,0.00016691,2]
[393876595,1763061956824,150.0,0.00016855,2]
[393876596,1763061961197,8612.27,8e-05,2]
[393876597,1763061961218,808.15,8e-05,2]
[393876598,1763061965216,9191.86,0.00011,2]
[393876599,1763061965246,160.16423732,0.00011,2]
[393876600,1763061976234,717.47,0.00016697,2]
[393876601,1763062015360,9122.37576268,0.000162,5]
[393876602,1763062015383,10000.01,0.000162,5]
[393876603,1763062015404,10000.01,0.000162,5]
[393876604,1763062015425,10000.01,0.000162,5]
[393876605,1763062015447,10000.01,0.000162,5]
[393876606,1763062015468,10000.01,0.000162,5]
[393876607,1763062015490,10000.01,0.000162,5]
[393876608,1763062015512,10000.01,0.000162,5]
[393876609,1763062015537,10000.01,0.000162,5]
[393876610,1763062015560,10000.01,0.000162,5]
[393876611,1763062015590,85726.68712328,0.000162,5]
[393876612,1763062015614,63764.24888183,0.000162,5]
[393876613,1763062023047,1517.64,0.000153,2]
[393876617,1763062026735,2580.45285094,0.00015,2]
[393876626,1763062060658,500.0,0.000169,2]
[393876629,1763062087790,2678.304297,7.945e-05,2]
[393876630,1763062089283,200.0,0.0001634,2]
[393876632,1763062091770,3818.69200436,0.0001691,2]
[393876633,1763062095666,485.02396324,0.0001691,2]
[393876634,1763062096900,500.0,0.00016919,2]
[393876635,1763062100286,1156.28951088,0.0001691,2]
[393876636,1763062100972,661.70022452,0.00015,2]
[393876637,1763062100995,10000.01,0.00015,2]
[393876638,1763062101030,10000.01,0.00015,2]
[393876639,1763062101054,4616.12511754,0.00015,2]
[393876640,1763062104098,178.71618268,0.0001691,2]
[393876644,1763062111529,166.66,0.00015701,2]
[393876645,1763062111738,166.66,0.00016031,2]
[393876646,1763062112065,166.66,0.00016362,2]
[393876647,1763062112194,166.66,0.00016692,2]
[393876650,1763062116356,1919.53240489,0.00015807,2]
[393876651,1763062116583,288.9207316,0.00016918,2]
[393876652,1763062119440,2330.07556329,0.00015,3]
[393876653,1763062119463,10000.01,0.00015,3]
[393876654,1763062119487,10000.01,0.00015,3]
[393876655,1763062119510,10000.01,0.00015,3]
[393876656,1763062119532,10000.01,0.00015,3]
[393876657,1763062119554,7494.0435813,0.00015,3]
[393876660,1763062120082,2505.9664187,0.00015,2]
[393876661,1763062120105,10000.01,0.00015,2]
[393876662,1763062120126,10000.01,0.00015,2]
[393876663,1763062120148,10000.01,0.00015,2]
[393876664,1763062120169,10000.01,0.00015,2]
[393876665,1763062120191,255.37050815,0.00015,2]
[393876670,1763062128613,1054.95580468,0.00016918,2]
[393876671,1763062131542,400.0,0.000165,6]
[393876672,1763062133653,800.0,0.000166,6]
[393876673,1763062135771,1300.0,0.000167,6]
[393876674,1763062137592,165.20004784,0.00016918,2]
[393876675,1763062137915,1700.0,0.000168,6]
[393876676,1763062139960,2200.0,0.000169,6]
[393876685,1763062148924,928.47659471,0.000169,2]
[393876687,1763062154959,171.0,0.000164,2]
[393876688,1763062155727,239.0,0.000164,2]
[393876689,1763062156509,274.07414256,0.000164,2]
[393876758,1763062165977,351.13383336,0.000169,2]
[393876784,1763062202871,-151.0,0.00016997,2]
[393876785,1763062202908,-307.20857083,0.00016998,2]
[393876786,1763062202949,-1200.0,0.00016998,2]
[393876787,1763062202983,-300.0,0.00016998,2]
[393876788,1763062203015,-300.0,0.00016998,2]
[393876789,1763062203048,-550.0,0.00016998,2]
[393876790,1763062203080,-1045.12569772,0.00016999,5]
[393876791,1763062203114,-300.0,0.00016999,2]
[393876792,1763062203663,312.0,0.00016997,2]
[393876793,1763062205134,-154.0,0.00016999,2]
[393876794,1763062209444,-55.850117,0.00016999,2]
[393876795,1763062209467,-100.81453427,0.00016999,2]